bitfinex/quotes_BTCUSD_20250526
["timestamp","ask_amount","ask_price","bid_price","bid_amount"]
[1748295694442,0.37463502,109210.0,109200.0,0.63021664]
[1748295694862,0.38973502,109210.0,109200.0,0.63021664]
[1748295696382,0.38973502,109210.0,109200.0,0.35561664]
[1748295696586,0.38973502,109210.0,109200.0,0.63021664]
[1748295699127,0.40427587,109210.0,109200.0,0.35561664]
[1748295699354,0.40427587,109210.0,109200.0,0.63021664]
[1748295699565,0.40427587,109210.0,109200.0,0.01053664]
[1748295699736,0.40427587,109210.0,109200.0,0.35541664]
[1748295701019,0.40427587,109210.0,109200.0,0.01053664]
[1748295701234,0.40427587,109210.0,109200.0,0.34688]
[1748295701442,0.43176187,109210.0,109200.0,0.34688]
[1748295703642,1.62997687,109210.0,109200.0,0.002]
[1748295703857,2.0524899,109210.0,109200.0,0.002]
[1748295704512,0.56280752,109200.0,109190.0,0.39528]
[1748295704729,1.01647459,109200.0,109190.0,0.39528]
[1748295705300,1.02647459,109200.0,109190.0,0.39528]
[1748295705718,1.02647459,109200.0,109190.0,0.39577632]
[1748295710363,1.05396559,109200.0,109190.0,0.39577632]
[1748295711306,1.05396559,109200.0,109190.0,0.00049632]
[1748295711727,1.11668723,109200.0,109190.0,0.00049632]
[1748295714830,0.83208723,109200.0,109190.0,0.00049632]
[1748295715208,0.81913708,109200.0,109190.0,0.00049632]
[1748295719305,0.47913708,109200.0,109190.0,0.00049632]
[1748295719517,0.34457472,109200.0,109190.0,0.83979132]
[1748295719728,0.34457472,109200.0,109190.0,0.85579132]
[1748295720335,0.34457472,109200.0,109190.0,0.86434087]
[1748295720545,0.31254977,109200.0,109190.0,0.86434087]
[1748295721368,0.31254977,109200.0,109190.0,0.86634087]
[1748295723776,0.28185308,109200.0,109190.0,0.86634087]
[1748295727211,0.28185308,109200.0,109190.0,0.59166087]
[1748295727456,0.28185308,109200.0,109190.0,0.86630087]
[1748295731518,0.28185308,109200.0,109190.0,0.57566087]
[1748295731810,0.36055173,109200.0,109190.0,1.18014087]
[1748295733909,0.28185308,109200.0,109190.0,1.18014087]
[1748295734548,0.29795308,109200.0,109190.0,1.18014087]
[1748295735194,0.29795308,109200.0,109190.0,0.55926087]
[1748295735476,0.29795308,109200.0,109190.0,1.18010087]
[1748295735887,0.31435308,109200.0,109190.0,1.18010087]
[1748295736317,0.28185308,109200.0,109190.0,1.18010087]
[1748295738281,0.33134485,109200.0,109190.0,1.18010087]
[1748295738484,0.28185308,109200.0,109190.0,1.18010087]
[1748295739546,0.28185308,109200.0,109190.0,1.17910087]
[1748295739760,0.29765308,109200.0,109190.0,1.17810087]
[1748295740394,0.28185308,109200.0,109190.0,1.17810087]
[1748295741541,0.29755308,109200.0,109190.0,1.17810087]
[1748295742910,0.29755308,109200.0,109190.0,1.57354087]
[1748295743322,0.31265308,109200.0,109190.0,1.29890087]
[1748295743535,0.36361485,109200.0,109190.0,1.57354087]
[1748295744283,0.36361485,109200.0,109190.0,1.29890087]
[1748295744500,0.36361485,109200.0,109190.0,1.02532587]
[1748295751758,0.36365485,109200.0,109190.0,1.02532587]
[1748295753585,0.36365485,109200.0,109190.0,0.62988587]
[1748295756698,0.36365485,109200.0,109190.0,0.35524587]
[1748295756903,0.36365485,109200.0,109190.0,0.62988587]
[1748295757357,0.39114085,109200.0,109190.0,0.63072587]
[1748295758019,0.4056817,109200.0,109190.0,0.63072587]
[1748295759152,0.4056817,109200.0,109190.0,0.35608587]
[1748295759354,0.4056817,109200.0,109190.0,0.00904587]
[1748295759575,0.4056817,109200.0,109190.0,0.63072587]
[1748295759813,0.4056817,109200.0,109190.0,0.35608587]
[1748295760701,0.4056817,109200.0,109190.0,0.34753632]
[1748295763746,0.43646577,109200.0,109190.0,0.34753632]
[1748295764121,0.43646577,109200.0,109190.0,0.32607212]
[1748295764766,0.77646577,109200.0,109190.0,0.32607212]
[1748295772483,0.78646577,109200.0,109190.0,0.32607212]
[1748295781010,0.20686598,109190.0,109180.0,0.002]
[1748295781191,0.41813305,109190.0,109180.0,0.34968]
[1748295781597,0.41813305,109190.0,109180.0,0.3495492]
[1748295782224,0.44562505,109190.0,109180.0,0.3495492]
[1748295782418,0.44562505,109190.0,109180.0,0.3505492]
[1748295782628,0.44562505,109190.0,109180.0,0.3515492]
[1748295783664,0.5085574,109190.0,109180.0,0.3515492]
[1748295784759,0.5085574,109190.0,109180.0,0.33008404]
[1748295786092,0.5085574,109190.0,109180.0,0.32908404]
[1748295786317,0.5115574,109190.0,109180.0,0.32808404]
[1748295786786,0.5145574,109190.0,109180.0,0.32808404]
[1748295800989,0.48240912,109190.0,109180.0,0.32808404]
[1748295803842,0.20688359,109180.0,109170.0,0.41164713]
[1748295804051,0.3953426,109180.0,109170.0,1.03400713]
[1748295804561,0.4228346,109180.0,109170.0,1.03400713]
[1748295804783,0.4228346,109180.0,109170.0,1.04259021]
[1748295805270,0.4248346,109180.0,109170.0,1.04259021]
[1748295805485,0.4258346,109180.0,109170.0,1.04259021]
[1748295805639,0.4107346,109180.0,109170.0,1.04259021]
[1748295806820,0.4263346,109180.0,109170.0,1.04259021]
[1748295807250,0.43566689,109180.0,109170.0,1.04259021]
[1748295807495,0.43566689,109180.0,109170.0,0.63094308]
[1748295808123,0.46645096,109180.0,109170.0,0.63094308]
[1748295808331,0.46645096,109180.0,109170.0,1.04259021]
[1748295812412,0.46645096,109180.0,109170.0,0.63094308]
[1748295812656,0.46645096,109180.0,109170.0,1.04259021]
[1748295813074,0.46645096,109180.0,109170.0,0.76791021]
[1748295813282,0.46645096,109180.0,109170.0,1.04259021]
[1748295815259,0.45711867,109180.0,109170.0,1.04259021]
[1748295815473,0.45715867,109180.0,109170.0,1.04259021]
[1748295818838,0.37354522,109180.0,109170.0,1.04259021]
[1748295819080,0.31571237,109180.0,109170.0,1.48543734]
[1748295819300,0.31571237,109180.0,109170.0,1.81685426]
[1748295820106,0.31371237,109180.0,109170.0,1.81685426]
[1748295820308,0.31271237,109180.0,109170.0,1.81685426]
[1748295823065,0.2819283,109180.0,109170.0,1.81685426]
[1748295825249,0.2819283,109180.0,109170.0,2.19612826]
[1748295827763,0.2819283,109180.0,109170.0,1.345312]
[1748295827980,0.2819283,109180.0,109170.0,2.16860626]
[1748295830796,0.2819283,109180.0,109170.0,2.09153226]
[1748295833478,0.2819283,109180.0,109170.0,1.94849126]
[1748295833699,0.2819283,109180.0,109170.0,1.81685426]
[1748295834116,0.2819283,109180.0,109170.0,1.81681426]
[1748295837643,0.2819283,109180.0,109170.0,2.21229426]
[1748295839170,0.2819283,109180.0,109170.0,2.19689426]
[1748295840089,0.2819283,109180.0,109170.0,2.18109426]
[1748295840496,0.3135283,109180.0,109170.0,1.49212713]
[1748295840731,0.3135283,109180.0,109170.0,1.76676713]
[1748295840945,0.2819283,109180.0,109170.0,2.26048826]
[1748295841974,0.2819283,109180.0,109170.0,2.29248826]
[1748295842251,0.2819283,109180.0,109170.0,2.53751726]
[1748295842458,0.2819283,109180.0,109170.0,1.575482]
[1748295842662,0.2819283,109180.0,109170.0,2.48085026]
[1748295843302,0.2819283,109180.0,109170.0,2.46475026]
[1748295843515,0.2819283,109180.0,109170.0,2.48085026]
[1748295844382,0.10790317,109180.0,109170.0,2.96101345]
[1748295844597,0.1262207,109180.0,109170.0,3.14421405]
[1748295844775,0.10790267,109180.0,109170.0,3.15337348]
[1748295845030,0.30940417,109180.0,109170.0,3.14421405]
[1748295845234,0.30940417,109180.0,109170.0,3.13505453]
[1748295845451,0.30024574,109180.0,109170.0,3.13505453]
[1748295845690,0.30024574,109180.0,109170.0,3.15066337]
[1748295846121,0.107903,109180.0,109170.0,3.16082297]
[1748295846341,0.18316695,109190.0,109180.0,0.18318373]
[1748295846548,0.27271251,109190.0,109180.0,3.63768112]
[1748295846767,0.27271251,109190.0,109180.0,3.66515816]
[1748295847204,0.02801075,109200.0,109190.0,0.59099898]
[1748295847383,0.30986399,109200.0,109190.0,4.47103668]
[1748295847636,0.30986399,109200.0,109190.0,4.48019477]
[1748295847841,0.30070707,109200.0,109190.0,3.09001155]
[1748295848018,0.2915499,109200.0,109190.0,2.89768626]
[1748295848253,0.2915499,109200.0,109190.0,2.88628926]
[1748295848642,0.2915499,109200.0,109190.0,2.86266726]
[1748295848953,0.2915499,109200.0,109190.0,2.86466726]
[1748295849191,0.2915499,109200.0,109190.0,2.86462726]
[1748295850407,0.2915499,109200.0,109190.0,2.86662726]
[1748295850626,0.2915499,109200.0,109190.0,3.31931139]
[1748295850844,0.2915499,109200.0,109190.0,3.52079444]
[1748295851050,0.2915499,109200.0,109190.0,3.51163652]
[1748295851259,0.2915499,109200.0,109190.0,3.52079461]
[1748295851465,0.09008488,109200.0,109190.0,3.52079461]
[1748295851688,0.19428991,109210.0,109200.0,0.22390768]
[1748295851898,0.28388536,109210.0,109200.0,2.58643457]
[1748295852098,0.28388536,109210.0,109200.0,2.59559191]
[1748295852307,0.29304161,109210.0,109200.0,2.613906]
[1748295852442,0.3021976,109210.0,109200.0,2.60474908]
[1748295852646,0.31135418,109210.0,109200.0,2.62306316]
[1748295852859,0.2930411,109210.0,109200.0,2.62306316]
[1748295853071,0.3021976,109210.0,109200.0,2.61390616]
[1748295853356,0.3021976,109210.0,109200.0,2.628515]
[1748295853510,0.31135418,109210.0,109200.0,2.638672]
[1748295853931,0.31135418,109210.0,109200.0,2.28653713]
[1748295854364,0.31135418,109210.0,109200.0,2.29569405]
[1748295854805,0.31135418,109210.0,109200.0,2.28108521]
[1748295856141,0.09159545,109210.0,109200.0,2.63562606]
[1748295856363,0.19425487,109230.0,109220.0,0.20142805]
[1748295856573,0.29300509,109230.0,109220.0,3.44356999]
[1748295856959,0.29300509,109230.0,109220.0,3.26045335]
[1748295857153,0.19430479,109230.0,109220.0,3.31169599]
[1748295857396,0.21261385,109230.0,109220.0,3.33000706]
[1748295857605,0.22376884,109230.0,109220.0,3.32085157]
[1748295857767,0.21461435,109230.0,109220.0,3.31169599]
[1748295857970,0.21461435,109230.0,109220.0,3.32085173]
[1748295858208,0.21461435,109230.0,109220.0,3.3302091]
[1748295858450,0.21261435,109230.0,109220.0,3.3302091]
[1748295858773,0.28585035,109230.0,109220.0,1.88948776]
[1748295858956,0.2245723,109220.0,109210.0,0.01460884]
[1748295859178,0.31411786,109220.0,109210.0,0.75524884]
[1748295859381,0.31411786,109220.0,109210.0,0.40992884]
[1748295859636,0.32317702,109220.0,109210.0,0.40992884]
[1748295859846,0.92969814,109220.0,109210.0,0.75524884]
[1748295860064,0.92969814,109220.0,109210.0,0.74064]
[1748295860867,0.92969814,109220.0,109210.0,0.72504]
[1748295861152,0.20148305,109190.0,109180.0,0.002]
[1748295861381,0.32332861,109190.0,109180.0,0.62188]
[1748295861793,0.37543208,109190.0,109180.0,0.62188]
[1748295862008,0.41746093,109190.0,109180.0,0.34732]
[1748295862445,0.35081661,109190.0,109180.0,0.35147002]
[1748295862652,0.35081661,109190.0,109180.0,0.34947002]
[1748295862859,0.33501661,109190.0,109180.0,0.85292878]
[1748295863428,0.29102861,109190.0,109180.0,0.85292878]
[1748295863626,0.29102861,109190.0,109180.0,0.85092878]
[1748295863831,0.29102861,109190.0,109180.0,0.85192878]
[1748295864039,0.29102861,109190.0,109180.0,0.88332878]
[1748295864235,0.29102861,109190.0,109180.0,1.49796878]
[1748295865012,0.29102861,109190.0,109180.0,1.93139078]
[1748295865124,0.29102861,109190.0,109180.0,2.12373361]
[1748295865331,0.28187069,109190.0,109180.0,1.93139078]
[1748295865538,0.28187069,109190.0,109180.0,2.11457451]
[1748295865750,0.28187069,109190.0,109180.0,1.93139078]
[1748295865964,0.27271251,109190.0,109180.0,1.93139078]
[1748295866797,0.10786166,109190.0,109180.0,2.14205105]
[1748295867437,0.12617759,109190.0,109180.0,2.14205105]
[1748295867646,0.30934454,109190.0,109180.0,2.14205105]
[1748295867856,0.30934454,109190.0,109180.0,2.12373361]
[1748295868066,0.19232273,109200.0,109190.0,0.0309]
[1748295868262,0.28186829,109200.0,109190.0,1.89862058]
[1748295868507,0.28186829,109200.0,109190.0,1.88018352]
[1748295870067,0.28186829,109200.0,109190.0,1.88118352]
[1748295870902,0.28186829,109200.0,109190.0,1.78196452]
[1748295871104,0.28186829,109200.0,109190.0,1.76115452]
[1748295871347,0.28186829,109200.0,109190.0,1.24681776]
[1748295871521,0.28186829,109200.0,109190.0,0.96053676]
[1748295872156,0.28186829,109200.0,109190.0,0.92699576]
[1748295872528,0.28186829,109200.0,109190.0,0.89670376]
[1748295872731,0.28186829,109200.0,109190.0,0.89743876]
[1748295873401,0.28186829,109200.0,109190.0,0.50345876]
[1748295873641,0.28186829,109200.0,109190.0,1.24385876]
[1748295873846,0.29696829,109200.0,109190.0,1.51845876]
[1748295874426,0.28186829,109200.0,109190.0,1.51845876]
[1748295878769,0.28186829,109200.0,109190.0,1.58385876]
[1748295878981,0.29826829,109200.0,109190.0,1.85845876]
[1748295879163,0.36161137,109200.0,109190.0,0.50345876]
[1748295879377,0.31346829,109200.0,109190.0,0.6206]
[1748295884295,0.31346829,109200.0,109190.0,0.346]
[1748295884510,0.31346829,109200.0,109190.0,0.6206]
[1748295884635,0.39923741,109200.0,109190.0,0.6206]
[1748295885836,0.39923741,109200.0,109190.0,0.346]
[1748295890191,0.39923741,109200.0,109190.0,0.32453761]
[1748295900886,0.41377826,109200.0,109190.0,0.32453761]
[1748295904191,0.41477826,109200.0,109190.0,0.32453761]
[1748295904607,0.41577826,109200.0,109190.0,0.32453761]
[1748295910686,0.47866353,109200.0,109190.0,0.32453761]
[1748295911727,0.44706353,109200.0,109190.0,0.32453761]
[1748295911879,0.44706353,109200.0,109190.0,0.30307439]
[1748295912087,0.46316353,109200.0,109190.0,0.30307439]
[1748295912523,0.40488041,109200.0,109190.0,0.30307439]
[1748295914438,0.34199514,109200.0,109190.0,0.30307439]
[1748295914634,0.32589514,109200.0,109190.0,0.30307439]
[1748295917074,0.32589514,109200.0,109190.0,0.33487439]
[1748295917290,0.31135429,109200.0,109190.0,0.83787812]
[1748295917503,0.28386829,109200.0,109190.0,0.83787812]
[1748295917711,0.31606489,109200.0,109190.0,1.17787812]
[1748295918131,0.31606489,109200.0,109190.0,2.79612815]
[1748295918331,0.33336409,109200.0,109190.0,2.80528599]
[1748295918533,0.33236409,109200.0,109190.0,2.79612824]
[1748295918810,0.31404984,109200.0,109190.0,1.74285312]
[1748295919064,0.36377108,109200.0,109190.0,0.71824]
[1748295919269,0.32859069,109200.0,109190.0,0.36204884]
[1748295919454,0.34499069,109200.0,109190.0,0.36104884]
[1748295919599,0.36029069,109200.0,109190.0,0.36104884]
[1748295919822,0.4773002,109200.0,109190.0,0.36404884]
[1748295920021,0.4773002,109200.0,109190.0,0.36104884]
[1748295920424,0.4451036,109200.0,109190.0,0.34944]
[1748295920883,0.4451036,109200.0,109190.0,0.34744]
[1748295921242,0.4501036,109200.0,109190.0,0.34744]
[1748295921448,0.19232513,109190.0,109180.0,0.27683002]
[1748295921665,0.34519781,109190.0,109180.0,0.62327002]
[1748295921868,0.28187069,109190.0,109180.0,0.62327002]
[1748295922857,0.28587069,109190.0,109180.0,0.62327002]
[1748295923064,0.28887069,109190.0,109180.0,0.62327002]
[1748295924500,0.31635869,109190.0,109180.0,0.62327002]
[1748295926342,0.31635869,109190.0,109180.0,0.00215002]
[1748295926593,0.37993547,109190.0,109180.0,0.62327002]
[1748295926810,0.31635869,109190.0,109180.0,0.62327002]
[1748295927016,0.37931087,109190.0,109180.0,0.62327002]
[1748295927224,0.37931087,109190.0,109180.0,0.63867002]
[1748295927402,0.37931087,109190.0,109180.0,0.65507002]
[1748295934510,0.37931087,109190.0,109180.0,0.63867002]
[1748295936976,0.44596321,109190.0,109180.0,0.63867002]
[1748295937185,0.37931087,109190.0,109180.0,0.63867002]
[1748295938075,0.37931087,109190.0,109180.0,0.62327002]
[1748295939406,0.35182287,109190.0,109180.0,0.62327002]
[1748295940020,0.35182287,109190.0,109180.0,0.00215002]
[1748295940232,0.35182287,109190.0,109180.0,0.65673002]
[1748295943531,0.39828738,109190.0,109180.0,0.65673002]
[1748295943851,0.39828738,109190.0,109180.0,0.38205002]
[1748295944068,0.39828738,109190.0,109180.0,0.62483002]
[1748295945469,0.42872823,109190.0,109180.0,0.62483002]
[1748295945773,0.44372823,109190.0,109180.0,0.62483002]
[1748295946532,0.42872823,109190.0,109180.0,0.62483002]
[1748295948892,0.42872823,109190.0,109180.0,0.35015002]
[1748295949094,0.42872823,109190.0,109180.0,0.62483002]
[1748295952287,0.41282823,109190.0,109180.0,0.62483002]
[1748295952724,0.41282823,109190.0,109180.0,0.65673002]
[1748295953339,0.41282823,109190.0,109180.0,0.64073002]
[1748295953539,0.41282823,109190.0,109180.0,0.62483002]
[1748295956918,0.41282823,109190.0,109180.0,0.64073002]
[1748295959497,0.36636372,109190.0,109180.0,0.65673002]
[1748295964067,0.35182287,109190.0,109180.0,0.65673002]
[1748295964919,0.36636372,109190.0,109180.0,0.00215002]
[1748295965129,0.46531616,109190.0,109180.0,0.62291002]
[1748295967744,0.96831989,109190.0,109180.0,0.34823002]
[1748295968254,0.49280716,109190.0,109180.0,0.34823002]
[1748295968476,0.99581089,109190.0,109180.0,0.34823002]
[1748295968686,0.96831989,109190.0,109180.0,0.34823002]
[1748295968988,0.93612329,109190.0,109180.0,0.34823002]
[1748295971102,0.43311956,109190.0,109180.0,0.34823002]
[1748295972875,1.21080329,109190.0,109180.0,0.34823002]
[1748295973081,1.21080329,109190.0,109180.0,0.00215002]
[1748295973684,0.22188359,109180.0,109170.0,0.74156]
[1748295973999,0.40095066,109180.0,109170.0,0.74171009]
[1748295974665,0.40095066,109180.0,109170.0,0.7502846]
[1748295974882,0.40295066,109180.0,109170.0,0.7502846]
[1748295975019,0.40495066,109180.0,109170.0,0.7502846]
[1748295978766,0.30042915,109180.0,109170.0,0.7810846]
[1748295978907,0.2858883,109180.0,109170.0,0.7810846]
[1748295979539,0.3487968,109180.0,109170.0,0.7810846]
[1748295988712,0.3487968,109180.0,109170.0,0.3856046]
[1748295989991,0.39906497,109180.0,109170.0,0.3856046]
[1748295992323,0.3487968,109180.0,109170.0,0.3856046]
[1748295996131,0.3487968,109180.0,109170.0,0.37703009]
[1748296006280,0.3487968,109180.0,109170.0,0.77953315]
[1748296006488,0.3487968,109180.0,109170.0,0.37703009]
[1748296045741,0.3487968,109180.0,109170.0,0.36193009]
[1748296046031,0.41140742,109180.0,109170.0,0.36193009]
[1748296049355,0.41140742,109180.0,109170.0,0.34623009]
[1748296049676,0.41140742,109180.0,109170.0,0.36183009]
[1748296050700,0.3487968,109180.0,109170.0,0.36183009]
[1748296060811,0.3487968,109180.0,109170.0,0.34623009]
[1748296062047,0.3487968,109180.0,109170.0,0.78117724]
[1748296062451,0.3487968,109180.0,109170.0,1.52362439]
[1748296062724,0.3487968,109180.0,109170.0,1.53458823]
[1748296063171,0.3467968,109180.0,109170.0,1.53458823]
[1748296063375,0.3447968,109180.0,109170.0,1.53458823]
[1748296063581,0.3457968,109180.0,109170.0,1.53458823]
[1748296064001,0.3457968,109180.0,109170.0,1.54919707]
[1748296064674,0.3467968,109180.0,109170.0,1.54919707]
[1748296065353,0.3467968,109180.0,109170.0,1.53458823]
[1748296066324,0.3467968,109180.0,109170.0,1.13214108]
[1748296066715,0.3467968,109180.0,109170.0,1.53458823]
[1748296069497,0.2838883,109180.0,109170.0,1.53458823]
[1748296069701,0.2838883,109180.0,109170.0,1.13214108]
[1748296071156,0.2838883,109180.0,109170.0,1.40682108]
[1748296075579,0.2838883,109180.0,109170.0,1.80926823]
[1748296080140,0.2838883,109180.0,109170.0,2.20474823]
[1748296081396,0.2838883,109180.0,109170.0,1.80230108]
[1748296081710,0.2838883,109180.0,109170.0,2.20470823]
[1748296081946,0.2838883,109180.0,109170.0,1.93006823]
[1748296082141,0.2838883,109180.0,109170.0,2.20470823]
[1748296082348,0.2838883,109180.0,109170.0,1.80226108]
[1748296083292,0.2838883,109180.0,109170.0,1.80166108]
[1748296091444,0.2838883,109180.0,109170.0,1.81626992]
[1748296092492,0.2838883,109180.0,109170.0,1.41382277]
[1748296092710,0.2838883,109180.0,109170.0,1.80530608]
[1748296097428,0.2838883,109180.0,109170.0,2.20775323]
[1748296097618,0.29304723,109180.0,109170.0,1.80530608]
[1748296098029,0.2838883,109180.0,109170.0,2.20775323]
[1748296098438,0.2838883,109180.0,109170.0,1.80530608]
[1748296098807,0.2838883,109180.0,109170.0,1.40285893]
[1748296099063,0.2838883,109180.0,109170.0,1.80530608]
[1748296100503,0.2838883,109180.0,109170.0,1.98850659]
[1748296100704,0.2838883,109180.0,109170.0,1.80530608]
[1748296102369,0.2838883,109180.0,109170.0,1.98850659]
[1748296103483,0.2838883,109180.0,109170.0,1.80530608]
[1748296106502,0.30220624,109180.0,109170.0,2.40927319]
[1748296106712,0.30220624,109180.0,109170.0,3.09169519]
[1748296106927,0.30220624,109180.0,109170.0,3.09169528]
[1748296107578,0.29304748,109180.0,109170.0,3.09169528]
[1748296112306,0.29304706,109180.0,109170.0,3.09169528]
[1748296112511,0.30220616,109180.0,109170.0,3.09169528]
[1748296112854,0.30220616,109180.0,109170.0,3.08253559]
[1748296113029,0.30220616,109180.0,109170.0,3.06792675]
[1748296113371,0.2920474,109180.0,109170.0,3.06792675]
[1748296113518,0.2920474,109180.0,109170.0,3.07092675]
[1748296114601,0.2910474,109180.0,109170.0,3.07092675]
[1748296114955,0.2910474,109180.0,109170.0,3.07392675]
[1748296116224,0.28188839,109180.0,109170.0,3.07392675]
[1748296119704,0.27272929,109180.0,109170.0,3.07939708]
[1748296119902,0.27272929,109180.0,109170.0,3.0885571]
[1748296121498,0.27272929,109180.0,109170.0,3.10687689]
[1748296126642,0.18318373,109180.0,109170.0,3.11603666]
[1748296127662,0.18318373,109180.0,109170.0,3.10687689]
[1748296129017,0.18318373,109180.0,109170.0,2.30198259]
[1748296129223,0.18318373,109180.0,109170.0,2.82813089]
[1748296129422,0.18318373,109180.0,109170.0,2.81350071]
[1748296129781,0.18318373,109180.0,109170.0,2.8226604]
[1748296129998,0.19234283,109180.0,109170.0,2.8226604]
[1748296131064,0.19234283,109180.0,109170.0,2.83182]
[1748296132687,0.19234283,109180.0,109170.0,2.8226604]
[1748296133288,0.20150168,109180.0,109170.0,2.8226604]
[1748296137226,0.20150168,109180.0,109170.0,2.81350071]
[1748296138286,0.20150168,109180.0,109170.0,2.53886071]
[1748296138448,0.20150168,109180.0,109170.0,2.81350071]
[1748296146526,0.19234283,109180.0,109170.0,2.81350071]
[1748296151385,0.1911408,109180.0,109170.0,2.81350071]
[1748296151806,0.191079,109180.0,109170.0,2.81350071]
[1748296155583,0.01831735,109180.0,109170.0,3.23914764]
[1748296155806,0.00915859,109180.0,109170.0,3.23914764]
[1748296156480,0.20148338,109190.0,109180.0,0.5735015]
[1748296156667,0.29102894,109190.0,109180.0,5.57891195]
[1748296156876,0.29102894,109190.0,109180.0,5.15339095]
[1748296157752,0.29102894,109190.0,109180.0,5.15539095]
[1748296157963,0.29102894,109190.0,109180.0,5.16454963]
[1748296159498,0.10786149,109190.0,109180.0,5.17470822]
[1748296160144,0.10786149,109190.0,109180.0,5.18407217]
[1748296160356,0.03215292,109200.0,109190.0,0.58314098]
[1748296160557,0.03215292,109200.0,109190.0,5.73314828]
[1748296160768,0.02031207,109210.0,109200.0,0.24312169]
[1748296160966,0.002,109210.0,109200.0,4.90332914]
[1748296161305,0.02031215,109210.0,109200.0,2.28652014]
[1748296161521,0.01115599,109210.0,109200.0,2.28652014]
[1748296161725,0.01115599,109210.0,109200.0,2.30113234]
[1748296162174,0.02031224,109210.0,109200.0,2.30113234]
[1748296162343,0.02031215,109210.0,109200.0,2.30113234]
[1748296162931,0.02031215,109210.0,109200.0,2.28652014]
[1748296163119,0.02031215,109210.0,109200.0,2.28752014]
[1748296163464,0.02946848,109210.0,109200.0,2.28852014]
[1748296163900,0.0294684,109210.0,109200.0,2.28852014]
[1748296164128,0.02031215,109210.0,109200.0,2.28852014]
[1748296166137,0.0294684,109210.0,109200.0,2.28852014]
[1748296166570,0.0386249,109210.0,109200.0,2.30306099]
[1748296167410,0.0294684,109210.0,109200.0,2.30306099]
[1748296167623,0.02946874,109210.0,109200.0,2.30306099]
[1748296167828,0.01115599,109210.0,109200.0,2.30306099]
[1748296167958,0.02031215,109210.0,109200.0,2.30306099]
[1748296168632,0.02031215,109210.0,109200.0,2.3176296]
[1748296168846,0.0386249,109210.0,109200.0,2.3176296]
[1748296169030,0.04778148,109210.0,109200.0,2.3176296]
[1748296169259,0.23091557,109210.0,109200.0,2.3176296]
[1748296171836,0.22175941,109210.0,109200.0,2.30847268]
[1748296172038,0.22175941,109210.0,109200.0,2.31762976]
[1748296175309,0.22175941,109210.0,109200.0,2.32678676]
[1748296181518,0.21260316,109210.0,109200.0,2.31762976]
[1748296181661,0.21260316,109210.0,109200.0,2.30306115]
[1748296182685,0.20344666,109210.0,109200.0,2.27760407]
[1748296182814,0.20344666,109210.0,109200.0,2.53592407]
[1748296183035,0.20344666,109210.0,109200.0,2.55152407]
[1748296183252,0.20344666,109210.0,109200.0,2.56732407]
[1748296184279,0.18513341,109210.0,109200.0,1.9883913]
[1748296184485,0.20133341,109210.0,109200.0,2.2629113]
[1748296185968,0.20133341,109210.0,109200.0,2.66535845]
[1748296187696,0.20133341,109210.0,109200.0,3.06067845]
[1748296192899,0.18513341,109210.0,109200.0,3.06067845]
[1748296201941,0.18513341,109210.0,109200.0,3.24382863]
[1748296202401,0.18513341,109210.0,109200.0,3.25298613]
[1748296204108,0.18513341,109210.0,109200.0,2.44071845]
[1748296204475,0.30677897,109210.0,109200.0,2.4753493]
[1748296205625,0.29077897,109210.0,109200.0,2.4753493]
[1748296206695,0.27467897,109210.0,109200.0,2.4753493]
[1748296212395,0.29097897,109210.0,109200.0,2.4753493]
[1748296212727,0.27467897,109210.0,109200.0,2.4753493]
[1748296219499,0.27467897,109210.0,109200.0,2.4909493]
[1748296220004,0.27467897,109210.0,109200.0,2.4753493]
[1748296225526,0.27467897,109210.0,109200.0,2.4916493]
[1748296227412,0.27467897,109210.0,109200.0,2.65849948]
[1748296227630,0.18513341,109210.0,109200.0,2.70065698]
[1748296227836,0.20344598,109210.0,109200.0,2.70065698]
[1748296228038,0.20344666,109210.0,109200.0,3.11226147]
[1748296228250,0.20344666,109210.0,109200.0,3.12141872]
[1748296230079,0.20344666,109210.0,109200.0,3.11226147]
[1748296231907,0.20344666,109210.0,109200.0,3.10310413]
[1748296232351,0.19429008,109210.0,109200.0,3.10310413]
[1748296234259,0.19429008,109210.0,109200.0,3.08660413]
[1748296234485,0.19429008,109210.0,109200.0,3.10210413]
[1748296235629,0.18513341,109210.0,109200.0,3.10210413]
[1748296238343,0.18513341,109210.0,109200.0,2.91895395]
[1748296238577,0.18513341,109210.0,109200.0,2.90979645]
[1748296241055,0.18513341,109210.0,109200.0,2.89429645]
[1748296241397,0.18513341,109210.0,109200.0,2.91069645]
[1748296244502,0.18513341,109210.0,109200.0,2.5082493]
[1748296245132,0.18513341,109210.0,109200.0,2.67499948]
[1748296245386,0.18513341,109210.0,109200.0,2.68415698]
[1748296245793,0.18513341,109210.0,109200.0,2.70055698]
[1748296246507,0.18513341,109210.0,109200.0,1.89566268]
[1748296246707,0.18513341,109210.0,109200.0,2.68415698]
[1748296247140,0.18513341,109210.0,109200.0,2.6933144]
[1748296247347,0.18513341,109210.0,109200.0,2.7095144]
[1748296249617,0.18513341,109210.0,109200.0,2.71867174]
[1748296259826,0.18513341,109210.0,109200.0,2.71787106]
[1748296262359,0.18513341,109210.0,109200.0,2.72702831]
[1748296264450,0.18513341,109210.0,109200.0,2.72704401]
[1748296264794,0.18513341,109210.0,109200.0,2.72704441]
[1748296265895,0.18513341,109210.0,109200.0,2.71788716]
[1748296270737,0.18513341,109210.0,109200.0,2.717871]
[1748296277418,0.18513341,109210.0,109200.0,2.72702825]
[1748296279209,0.19429008,109210.0,109200.0,2.73618542]
[1748296283352,0.20344649,109210.0,109200.0,2.73618542]
[1748296285283,0.20344649,109210.0,109200.0,2.736185]
[1748296286443,0.20344649,109210.0,109200.0,2.73618458]
[1748296286611,0.02031257,109210.0,109200.0,3.13823094]
[1748296286824,0.02946907,109210.0,109200.0,3.13823094]
[1748296289269,0.02031257,109210.0,109200.0,3.13823094]
[1748296289512,0.02946907,109210.0,109200.0,3.13823094]
[1748296294988,0.02031257,109210.0,109200.0,3.13823094]
[1748296298705,0.02031207,109210.0,109200.0,3.13823094]
[1748296298960,0.0294684,109210.0,109200.0,3.13823094]
[1748296300273,0.0386249,109210.0,109200.0,3.13823094]
[1748296302617,0.23091489,109210.0,109200.0,3.13823094]
[1748296307205,0.04778148,109210.0,109200.0,3.13823094]
[1748296308740,0.04778148,109210.0,109200.0,3.16738002]
[1748296314212,0.0386249,109210.0,109200.0,3.16738002]
[1748296322268,0.0294684,109210.0,109200.0,3.16738002]
[1748296323249,0.03862481,109210.0,109200.0,3.16738002]
[1748296323714,0.002,109210.0,109200.0,3.18192087]
[1748296325545,0.02031207,109210.0,109200.0,3.18192087]
[1748296326254,0.002,109210.0,109200.0,3.18192087]
[1748296327406,0.02031207,109210.0,109200.0,3.18192087]
[1748296327622,0.02031199,109210.0,109200.0,3.18192087]
[1748296329841,0.002,109210.0,109200.0,3.18192087]
[1748296335062,0.002,109210.0,109200.0,3.68351321]
[1748296335493,0.002,109210.0,109200.0,3.73351321]
[1748296335914,0.03861845,109230.0,109220.0,1.75672345]
[1748296336123,0.04777336,109230.0,109220.0,5.36353745]
[1748296337082,0.04782329,109230.0,109220.0,5.36353745]